fUST/lending_fUST_20260607
["ID","MTS","AMOUNT","RATE_DAILY","PERIOD"]
[424379777,1780824643000,-500.0,0.00019452,2]
[424379761,1780824643000,-500.0,0.00019452,2]
[424379780,1780824643000,-1097.78,0.00019452,2]
[424379786,1780824643000,-500.0,0.00019452,2]
[424379857,1780824643000,-500.0,0.00019452,2]
[424379879,1780824643000,-678.32,0.00019452,2]
[424379861,1780824643000,-500.0,0.00019452,2]
[424379928,1780824643000,-500.0,0.00019452,2]
[424379926,1780824643000,-500.0,0.00019452,2]
[424379932,1780824643000,-500.0,0.00019452,2]
[424379930,1780824643000,-1624.35,0.00019452,2]
[424379934,1780824643000,-500.0,0.00019452,2]
[424379936,1780824643000,-500.0,0.00019452,2]
[424379938,1780824643000,-500.0,0.00019452,2]
[424379948,1780824643000,-7311.82,0.00019452,2]
[424379940,1780824643000,-4263.39,0.00019452,2]
[424379950,1780824643000,-500.0,0.00019452,2]
[424379946,1780824643000,-500.0,0.00019452,2]
[424379952,1780824643000,-9414.11,0.00019452,2]
[424379942,1780824643000,-1528.12,0.00019452,2]
[424379944,1780824643000,-500.0,0.00019452,2]
[424379954,1780824643000,-500.0,0.00019452,2]
[424379956,1780824643000,-500.0,0.00019452,2]
[424379958,1780824643000,-500.0,0.00019452,2]
[424379960,1780824643000,-63937.2,0.00019452,2]
[424379964,1780824643000,-500.0,0.00019452,2]
[424379966,1780824643000,-500.0,0.00019452,2]
[424379859,1780824643000,-500.0,0.00019452,2]
[424379963,1780824643000,-500.0,0.00019452,2]
[424379974,1780824643000,-500.0,0.00019452,2]
[424379969,1780824643000,-500.0,0.00019452,2]
[424379976,1780824643000,-500.0,0.00019452,2]
[424379972,1780824643000,-500.0,0.00019452,2]
[424379978,1780824643000,-1575.62,0.00019452,2]
[424379924,1780824643000,-1292.45,0.00019452,2]
[424379922,1780824643000,-591.82,0.00019452,2]
[424379970,1780824643000,-554.79,0.00019452,2]
[424379914,1780824643000,-672.13,0.00019452,2]
[424379916,1780824643000,-890.46,0.00019452,2]
[424379865,1780824643000,-1221.0,0.00019452,2]
[424379863,1780824643000,-500.0,0.00019452,2]
[424379866,1780824643000,-962.61,0.00019452,2]
[424379871,1780824643000,-500.0,0.00019452,2]
[424379877,1780824643000,-500.0,0.00019452,2]
[424379873,1780824643000,-938.43,0.00019452,2]
[424379869,1780824643000,-782.16,0.00019452,2]
[424379881,1780824643000,-595.34,0.00019452,2]
[424379883,1780824643000,-680.73,0.00019452,2]
[424379889,1780824643000,-2227.57,0.00019452,2]
[424379893,1780824643000,-778.26,0.00019452,2]
[424379887,1780824643000,-500.0,0.00019452,2]
[424379875,1780824643000,-500.0,0.00019452,2]
[424379897,1780824643000,-576.97852216,0.00019452,2]
[424379891,1780824643000,-500.0,0.00019452,2]
[424379910,1780824643000,-615.44,0.00019452,2]
[424379912,1780824643000,-4779.16,0.00019452,2]
[424379918,1780824643000,-2428.42,0.00019452,2]
[424379904,1780824643000,-176.60936152,0.00019452,2]
[424379906,1780824643000,-641.49,0.00019452,2]
[424379920,1780824643000,-500.0,0.00019452,2]
[424379902,1780824643000,-500.0,0.00019452,2]
[424379899,1780824643000,-5073.33,0.00019452,2]
[424379901,1780824643000,-500.0,0.00019452,2]
[424379885,1780824643000,-500.0,0.00019452,2]
[424379895,1780824643000,-907.9,0.00019452,2]
[424379908,1780824643000,-753.1,0.00019452,2]
[424380047,1780824644000,-13555.39,0.00019452,2]
[424380035,1780824644000,-500.0,0.00019452,2]
[424380040,1780824644000,-5215.5,0.00019452,2]
[424380038,1780824644000,-1579.78,0.00019452,2]
[424380051,1780824644000,-3133.71,0.00019452,2]
[424380053,1780824644000,-500.0,0.00019452,2]
[424380057,1780824644000,-533.84,0.00019452,2]
[424380067,1780824644000,-500.0,0.00019452,2]
[424380064,1780824644000,-500.0,0.00019452,2]
[424380079,1780824644000,-500.0,0.00019452,2]
[424380061,1780824644000,-500.0,0.00019452,2]
[424380069,1780824644000,-500.0,0.00019452,2]
[424380071,1780824644000,-500.0,0.00019452,2]
[424380076,1780824644000,-500.0,0.00019452,2]
[424380081,1780824644000,-500.0,0.00019452,2]
[424380084,1780824644000,-500.0,0.00019452,2]
[424380093,1780824644000,-917.37,0.00019452,2]
[424380086,1780824644000,-3521.77,0.00019452,2]
[424380045,1780824644000,-862.84,0.00019452,2]
[424380074,1780824644000,-771.84,0.00019452,2]
[424380042,1780824644000,-500.0,0.00019452,2]
[424379990,1780824644000,-500.0,0.00019452,2]
[424380031,1780824644000,-1295.19,0.00019452,2]
[424379980,1780824644000,-500.0,0.00019452,2]
[424379982,1780824644000,-1933.25,0.00019452,2]
[424379984,1780824644000,-500.0,0.00019452,2]
[424380098,1780824644000,-565.29,0.00019452,2]
[424379988,1780824644000,-2371.17,0.00019452,2]
[424379998,1780824644000,-500.0,0.00019452,2]
[424380001,1780824644000,-500.0,0.00019452,2]
[424380003,1780824644000,-5922.28,0.00019452,2]
[424380008,1780824644000,-500.0,0.00019452,2]
[424380033,1780824644000,-3681.72,0.00019452,2]
[424379994,1780824644000,-2025.97,0.00019452,2]
[424379992,1780824644000,-2512.31,0.00019452,2]
[424380016,1780824644000,-500.0,0.00019452,2]
[424380013,1780824644000,-500.0,0.00019452,2]
[424380018,1780824644000,-564.43,0.00019452,2]
[424380011,1780824644000,-665.43,0.00019452,2]
[424380024,1780824644000,-500.0,0.00019452,2]
[424380021,1780824644000,-500.0,0.00019452,2]
[424380028,1780824644000,-1212.22,0.00019452,2]
[424380026,1780824644000,-3951.76,0.00019452,2]
[424380006,1780824644000,-7328.3,0.00019452,2]
[424380096,1780824644000,-1171.02,0.00019452,2]
[424379986,1780824644000,-500.0,0.00019452,2]
[424380091,1780824644000,-619.37,0.00019452,2]
[424380166,1780824644000,-156.0,0.00019573,2]
[424380152,1780824644000,-157.37,0.00019491,2]
[424380168,1780824644000,-156.68806,0.00019573,2]
[424380170,1780824644000,-151.1,0.00019579,2]
[424380172,1780824644000,-300.0,0.00019589,3]
[424380176,1780824644000,-371.499648,0.000196,2]
[424380175,1780824644000,-5250.36334029,0.000196,2]
[424380178,1780824644000,-288.272052,0.000196,2]
[424380184,1780824644000,-202.996254,0.000196,2]
[424380156,1780824644000,-198.63603079,0.000195,2]
[424380180,1780824644000,-266.537713,0.000196,2]
[424380187,1780824644000,-183.849811,0.000196,2]
[424380188,1780824644000,-326.084805,0.000196,2]
[424380190,1780824644000,-179.346643,0.000196,2]
[424380196,1780824644000,-5778.29725574,0.00019626,2]
[424380194,1780824644000,-157.55,0.0001962,2]
[424380201,1780824644000,-198.63603079,0.000197,2]
[424380199,1780824644000,-1832.65796079,0.000197,2]
[424380204,1780824644000,-532.06704953,0.000197,2]
[424380206,1780824644000,-2269.6571,0.00019726,2]
[424380182,1780824644000,-180.25532,0.000196,2]
[424380154,1780824644000,-1832.65796079,0.000195,2]
[424380100,1780824644000,-1180.54,0.00019452,2]
[424380164,1780824644000,-166.0,0.00019573,2]
[424380150,1780824644000,-160.0,0.0001949,2]
[424380088,1780824644000,-500.0,0.00019452,2]
[424380103,1780824644000,-500.0,0.00019452,2]
[424380105,1780824644000,-500.0,0.00019452,2]
[424380107,1780824644000,-500.0,0.00019452,2]
[424380112,1780824644000,-500.0,0.00019452,2]
[424380123,1780824644000,-2910.01,0.00019452,2]
[424380116,1780824644000,-742.96,0.00019452,2]
[424380118,1780824644000,-797.87,0.00019452,2]
[424380125,1780824644000,-500.0,0.00019452,2]
[424380110,1780824644000,-10351.17,0.00019452,2]
[424380121,1780824644000,-633.68,0.00019452,2]
[424380128,1780824644000,-500.0,0.00019452,2]
[424380130,1780824644000,-500.0,0.00019452,2]
[424380133,1780824644000,-3852.59,0.00019452,2]
[424380144,1780824644000,-500.0,0.00019452,2]
[424380146,1780824644000,-758.9,0.00019452,2]
[424380148,1780824644000,-600.0,0.00019459,2]
[424380158,1780824644000,-532.06704953,0.000195,2]
[424380162,1780824644000,-583.07190164,0.00019509,7]
[424380160,1780824644000,-602.26563356,0.00019509,7]
[424380114,1780824644000,-2735.29,0.00019452,2]
[424380288,1780824645000,-500.0,0.00019726,2]
[424380290,1780824645000,-500.0,0.00019726,2]
[424380284,1780824645000,-500.0,0.00019726,2]
[424380274,1780824645000,-500.0,0.00019726,2]
[424380272,1780824645000,-500.0,0.00019726,2]
[424380278,1780824645000,-500.0,0.00019726,2]
[424380280,1780824645000,-500.0,0.00019726,2]
[424380268,1780824645000,-886.85,0.00019726,2]
[424380282,1780824645000,-504.13,0.00019726,2]
[424380292,1780824645000,-500.0,0.00019726,2]
[424380270,1780824645000,-500.0,0.00019726,2]
[424380302,1780824645000,-1000.0,0.00019726,2]
[424380312,1780824645000,-500.0,0.00019726,2]
[424380300,1780824645000,-500.0,0.00019726,2]
[424380298,1780824645000,-724.01,0.00019726,2]
[424380306,1780824645000,-500.0,0.00019726,2]
[424380296,1780824645000,-2259.66,0.00019726,2]
[424380304,1780824645000,-500.0,0.00019726,2]
[424380294,1780824645000,-500.0,0.00019726,2]
[424380310,1780824645000,-500.0,0.00019726,2]
[424380316,1780824645000,-989.96,0.00019726,2]
[424380314,1780824645000,-500.0,0.00019726,2]
[424380266,1780824645000,-500.0,0.00019726,2]
[424380328,1780824645000,-790.45,0.00019726,2]
[424380308,1780824645000,-500.0,0.00019726,2]
[424380276,1780824645000,-1215.38,0.00019726,2]
[424380239,1780824645000,-1677.75,0.00019726,2]
[424380260,1780824645000,-500.0,0.00019726,2]
[424380209,1780824645000,-851.1183,0.00019726,2]
[424380211,1780824645000,-500.0,0.00019726,2]
[424380214,1780824645000,-500.0,0.00019726,2]
[424380216,1780824645000,-500.0,0.00019726,2]
[424380221,1780824645000,-1310.35,0.00019726,2]
[424380231,1780824645000,-596.92,0.00019726,2]
[424380218,1780824645000,-500.0,0.00019726,2]
[424380227,1780824645000,-500.0,0.00019726,2]
[424380229,1780824645000,-581.29,0.00019726,2]
[424380225,1780824645000,-500.0,0.00019726,2]
[424380223,1780824645000,-500.0,0.00019726,2]
[424380233,1780824645000,-500.0,0.00019726,2]
[424380235,1780824645000,-1670.36,0.00019726,2]
[424380237,1780824645000,-500.0,0.00019726,2]
[424380241,1780824645000,-526.62,0.00019726,2]
[424380318,1780824645000,-500.0,0.00019726,2]
[424380244,1780824645000,-720.49,0.00019726,2]
[424380246,1780824645000,-500.0,0.00019726,2]
[424380256,1780824645000,-500.0,0.00019726,2]
[424380248,1780824645000,-500.0,0.00019726,2]
[424380250,1780824645000,-500.0,0.00019726,2]
[424380252,1780824645000,-500.0,0.00019726,2]
[424380254,1780824645000,-801.44,0.00019726,2]
[424380258,1780824645000,-981.7,0.00019726,2]
[424380262,1780824645000,-500.0,0.00019726,2]
[424380264,1780824645000,-500.0,0.00019726,2]
[424380320,1780824645000,-500.0,0.00019726,2]
[424380286,1780824645000,-875.01,0.00019726,2]
[424380338,1780824645000,-500.0,0.00019726,2]
[424380392,1780824645000,-1846.22,0.00019726,2]
[424380376,1780824645000,-2147.68,0.00019726,2]
[424380373,1780824645000,-1018.09,0.00019726,2]
[424380378,1780824645000,-500.0,0.00019726,2]
[424380388,1780824645000,-740.76,0.00019726,2]
[424380395,1780824645000,-500.0,0.00019726,2]
[424380404,1780824645000,-500.0,0.00019726,2]
[424380397,1780824645000,-500.0,0.00019726,2]
[424380400,1780824645000,-500.0,0.00019726,2]
[424380398,1780824645000,-500.0,0.00019726,2]
[424380419,1780824645000,-500.0,0.00019726,2]
[424380422,1780824645000,-500.0,0.00019726,2]
[424380406,1780824645000,-1206.89,0.00019726,2]
[424380424,1780824645000,-2470.29,0.00019726,2]
[424380420,1780824645000,-500.0,0.00019726,2]
[424380408,1780824645000,-601.67471678,0.00019726,2]
[424380426,1780824645000,-500.0,0.00019726,2]
[424380410,1780824645000,-500.0,0.00019726,2]
[424380412,1780824645000,-500.0,0.00019726,2]
[424380430,1780824645000,-869.31,0.00019726,2]
[424380416,1780824645000,-553.23126776,0.00019726,2]
[424380414,1780824645000,-535.74104794,0.00019726,2]
[424380429,1780824645000,-500.0,0.00019726,2]
[424380433,1780824645000,-500.0,0.00019726,2]
[424380330,1780824645000,-500.0,0.00019726,2]
[424380390,1780824645000,-500.0,0.00019726,2]
[424380374,1780824645000,-500.0,0.00019726,2]
[424380402,1780824645000,-500.0,0.00019726,2]
[424380384,1780824645000,-500.0,0.00019726,2]
[424380334,1780824645000,-530.0,0.00019726,2]
[424380386,1780824645000,-500.0,0.00019726,2]
[424380336,1780824645000,-500.0,0.00019726,2]
[424380332,1780824645000,-500.0,0.00019726,2]
[424380322,1780824645000,-505.6,0.00019726,2]
[424380326,1780824645000,-673.42,0.00019726,2]
[424380324,1780824645000,-1328.01,0.00019726,2]
[424380340,1780824645000,-756.93,0.00019726,2]
[424380342,1780824645000,-656.3,0.00019726,2]
[424380344,1780824645000,-500.0,0.00019726,2]
[424380358,1780824645000,-2052.47,0.00019726,2]
[424380361,1780824645000,-606.96,0.00019726,2]
[424380348,1780824645000,-813.32,0.00019726,2]
[424380346,1780824645000,-500.0,0.00019726,2]
[424380354,1780824645000,-500.0,0.00019726,2]
[424380382,1780824645000,-1055.84,0.00019726,2]
[424380350,1780824645000,-500.0,0.00019726,2]
[424380380,1780824645000,-500.0,0.00019726,2]
[424380369,1780824645000,-500.0,0.00019726,2]
[424380367,1780824645000,-500.0,0.00019726,2]
[424380363,1780824645000,-672.71,0.00019726,2]
[424380371,1780824645000,-500.0,0.00019726,2]
[424380352,1780824645000,-1347.46,0.00019726,2]
[424380356,1780824645000,-227.90376127,0.00019726,2]
[424380359,1780824645000,-500.0,0.00019726,2]
[424380365,1780824645000,-643.94207744,0.00019726,2]
[424380517,1780824646000,-500.0,0.00019726,2]
[424380496,1780824646000,-500.0,0.00019726,2]
[424380494,1780824646000,-1387.08,0.00019726,2]
[424380500,1780824646000,-1201.23,0.00019726,2]
[424380504,1780824646000,-500.0,0.00019726,2]
[424380502,1780824646000,-2486.53,0.00019726,2]
[424380512,1780824646000,-1061.99,0.00019726,2]
[424380510,1780824646000,-500.0,0.00019726,2]
[424380508,1780824646000,-1474.29,0.00019726,2]
[424380506,1780824646000,-2521.83,0.00019726,2]
[424380519,1780824646000,-500.0,0.00019726,2]
[424380498,1780824646000,-1363.58,0.00019726,2]
[424380527,1780824646000,-500.0,0.00019726,2]
[424380545,1780824646000,-500.0,0.00019726,2]
[424380523,1780824646000,-529.65,0.00019726,2]
[424380525,1780824646000,-1572.67,0.00019726,2]
[424380535,1780824646000,-675.34,0.00019726,2]
[424380531,1780824646000,-548.91570382,0.00019726,2]
[424380537,1780824646000,-616.17376068,0.00019726,2]
[424380529,1780824646000,-500.0,0.00019726,2]
[424380533,1780824646000,-768.21,0.00019726,2]
[424380541,1780824646000,-541.08,0.00019726,2]
[424380544,1780824646000,-903.6,0.00019726,2]
[424380539,1780824646000,-758.99,0.00019726,2]
[424380490,1780824646000,-794.36,0.00019726,2]
[424380550,1780824646000,-1581.28,0.00019726,2]
[424380521,1780824646000,-485.88874122,0.00019726,2]
[424380492,1780824646000,-500.0,0.00019726,2]
[424380438,1780824646000,-554.3,0.00019726,2]
[424380489,1780824646000,-1097.78,0.00019726,2]
[424380547,1780824646000,-2856.22,0.00019726,2]
[424380442,1780824646000,-500.0,0.00019726,2]
[424380437,1780824646000,-500.0,0.00019726,2]
[424380435,1780824646000,-488.82857129,0.00019726,2]
[424380440,1780824646000,-500.0,0.00019726,2]
[424380446,1780824646000,-500.0,0.00019726,2]
[424380448,1780824646000,-500.0,0.00019726,2]
[424380444,1780824646000,-3303.71,0.00019726,2]
[424380455,1780824646000,-501.08,0.00019726,2]
[424380451,1780824646000,-500.0,0.00019726,2]
[424380453,1780824646000,-614.78,0.00019726,2]
[424380461,1780824646000,-500.0,0.00019726,2]
[424380463,1780824646000,-4619.29,0.00019726,2]
[424380450,1780824646000,-1367.75,0.00019726,2]
[424380457,1780824646000,-767.16,0.00019726,2]
[424380459,1780824646000,-500.0,0.00019726,2]
[424380465,1780824646000,-814.42,0.00019726,2]
[424380467,1780824646000,-694.23,0.00019726,2]
[424380469,1780824646000,-1324.27,0.00019726,2]
[424380471,1780824646000,-1000.0,0.00019726,2]
[424380473,1780824646000,-500.0,0.00019726,2]
[424380481,1780824646000,-500.0,0.00019726,2]
[424380475,1780824646000,-500.0,0.00019726,2]
[424380487,1780824646000,-500.0,0.00019726,2]
[424380485,1780824646000,-500.0,0.00019726,2]
[424380479,1780824646000,-795.07,0.00019726,2]
[424380477,1780824646000,-500.0,0.00019726,2]
[424380483,1780824646000,-500.0,0.00019726,2]
[424380552,1780824646000,-500.0,0.00019726,2]
[424380623,1780824646000,-500.0,0.00019726,2]
[424380557,1780824646000,-500.0,0.00019726,2]
[424380618,1780824646000,-493.22033286,0.00019726,2]
[424380616,1780824646000,-500.0,0.00019726,2]
[424380625,1780824646000,-500.0,0.00019726,2]
[424380621,1780824646000,-1624.35,0.00019726,2]
[424380632,1780824646000,-1528.12,0.00019726,2]
[424380635,1780824646000,-500.0,0.00019726,2]
[424380630,1780824646000,-4263.39,0.00019726,2]
[424380627,1780824646000,-500.0,0.00019726,2]
[424380634,1780824646000,-500.0,0.00019726,2]
[424380637,1780824646000,-7311.82,0.00019726,2]
[424380639,1780824646000,-500.0,0.00019726,2]
[424380641,1780824646000,-9414.11,0.00019726,2]
[424380643,1780824646000,-500.0,0.00019726,2]
[424380646,1780824646000,-500.0,0.00019726,2]
[424380647,1780824646000,-63937.2,0.00019726,2]
[424380654,1780824646000,-500.0,0.00019726,2]
[424380656,1780824646000,-500.0,0.00019726,2]
[424380650,1780824646000,-442.35002758,0.00019726,2]
[424380662,1780824646000,-500.0,0.00019726,2]
[424380658,1780824646000,-500.0,0.00019726,2]
[424380664,1780824646000,-500.0,0.00019726,2]
[424380660,1780824646000,-554.79,0.00019726,2]
[424380555,1780824646000,-500.0,0.00019726,2]
[424380668,1780824646000,-1575.62,0.00019726,2]
[424380666,1780824646000,-500.0,0.00019726,2]
[424380672,1780824646000,-1933.25,0.00019726,2]
[424380670,1780824646000,-500.0,0.00019726,2]
[424380619,1780824646000,-500.0,0.00019726,2]
[424380614,1780824646000,-1292.45,0.00019726,2]
[424380652,1780824646000,-272.19815252,0.00019726,2]
[424380608,1780824646000,-2428.42,0.00019726,2]
[424380554,1780824646000,-500.0,0.00019726,2]
[424380610,1780824646000,-500.0,0.00019726,2]
[424380563,1780824646000,-782.16,0.00019726,2]
[424380561,1780824646000,-962.61,0.00019726,2]
[424380565,1780824646000,-500.0,0.00019726,2]
[424380567,1780824646000,-938.43,0.00019726,2]
[424380577,1780824646000,-680.73,0.00019726,2]
[424380585,1780824646000,-500.0,0.00019726,2]
[424380579,1780824646000,-500.0,0.00019726,2]
[424380581,1780824646000,-500.0,0.00019726,2]
[424380583,1780824646000,-2227.57,0.00019726,2]
[424380575,1780824646000,-595.34,0.00019726,2]
[424380587,1780824646000,-778.26,0.00019726,2]
[424380569,1780824646000,-500.0,0.00019726,2]
[424380559,1780824646000,-1221.0,0.00019726,2]
[424380571,1780824646000,-500.0,0.00019726,2]
[424380573,1780824646000,-678.32,0.00019726,2]
[424380612,1780824646000,-591.82,0.00019726,2]
[424380600,1780824646000,-615.44,0.00019726,2]
[424380604,1780824646000,-672.13,0.00019726,2]
[424380595,1780824646000,-500.0,0.00019726,2]
[424380599,1780824646000,-753.1,0.00019726,2]
[424380597,1780824646000,-641.49,0.00019726,2]
[424380593,1780824646000,-500.0,0.00019726,2]
[424380591,1780824646000,-5073.33,0.00019726,2]
[424380589,1780824646000,-907.9,0.00019726,2]
[424380602,1780824646000,-4779.16,0.00019726,2]
[424380606,1780824646000,-890.46,0.00019726,2]
[424380731,1780824647000,-533.84,0.00019726,2]
[424380729,1780824647000,-500.0,0.00019726,2]
[424380750,1780824647000,-500.0,0.00019726,2]
[424380733,1780824647000,-500.0,0.00019726,2]
[424380738,1780824647000,-500.0,0.00019726,2]
[424380740,1780824647000,-500.0,0.00019726,2]
[424380742,1780824647000,-500.0,0.00019726,2]
[424380735,1780824647000,-500.4832696,0.00019726,2]
[424380744,1780824647000,-771.84,0.00019726,2]
[424380746,1780824647000,-500.0,0.00019726,2]
[424380771,1780824647000,-500.0,0.00019726,2]
[424380754,1780824647000,-3521.77,0.00019726,2]
[424380752,1780824647000,-500.0,0.00019726,2]
[424380767,1780824647000,-1180.54,0.00019726,2]
[424380765,1780824647000,-565.29,0.00019726,2]
[424380773,1780824647000,-500.0,0.00019726,2]
[424380769,1780824647000,-500.0,0.00019726,2]
[424380777,1780824647000,-500.0,0.00019726,2]
[424380775,1780824647000,-10351.17,0.00019726,2]
[424380756,1780824647000,-500.0,0.00019726,2]
[424380759,1780824647000,-619.37,0.00019726,2]
[424380725,1780824647000,-13555.39,0.00019726,2]
[424380763,1780824647000,-1171.02,0.00019726,2]
[424380748,1780824647000,-500.0,0.00019726,2]
[424380727,1780824647000,-3133.71,0.00019726,2]
[424380696,1780824647000,-3951.76,0.00019726,2]
[424380723,1780824647000,-862.84,0.00019726,2]
[424380779,1780824647000,-2735.29,0.00019726,2]
[424380674,1780824647000,-500.0,0.00019726,2]
[424380678,1780824647000,-500.0,0.00019726,2]
[424380679,1780824647000,-2512.31,0.00019726,2]
[424380676,1780824647000,-500.0,0.00019726,2]
[424380677,1780824647000,-2371.17,0.00019726,2]
[424380681,1780824647000,-500.0,0.00019726,2]
[424380684,1780824647000,-5922.28,0.00019726,2]
[424380680,1780824647000,-2025.97,0.00019726,2]
[424380686,1780824647000,-665.43,0.00019726,2]
[424380685,1780824647000,-7328.3,0.00019726,2]
[424380682,1780824647000,-500.0,0.00019726,2]
[424380688,1780824647000,-500.0,0.00019726,2]
[424380698,1780824647000,-1212.22,0.00019726,2]
[424380700,1780824647000,-1295.19,0.00019726,2]
[424380702,1780824647000,-3681.72,0.00019726,2]
[424380687,1780824647000,-500.0,0.00019726,2]
[424380690,1780824647000,-564.43,0.00019726,2]
[424380694,1780824647000,-500.0,0.00019726,2]
[424380692,1780824647000,-500.0,0.00019726,2]
[424380714,1780824647000,-500.0,0.00019726,2]
[424380716,1780824647000,-1579.78,0.00019726,2]
[424380719,1780824647000,-5215.5,0.00019726,2]
[424380721,1780824647000,-500.0,0.00019726,2]
[424380761,1780824647000,-917.37,0.00019726,2]
[424380845,1780824647000,-288.29714514,0.00019875,2]
[424380782,1780824647000,-797.87,0.00019726,2]
[424380838,1780824647000,-172.67092071,0.00019868,2]
[424380849,1780824647000,-159.43281001,0.00019875,2]
[424380840,1780824647000,-204.47983466,0.00019868,2]
[424380852,1780824647000,-190.86830898,0.00019875,2]
[424380850,1780824647000,-460.60965503,0.00019875,2]
[424380847,1780824647000,-160.1417965,0.00019875,2]
[424380843,1780824647000,-209.3813915,0.00019868,2]
[424380854,1780824647000,-189.4995038,0.00019875,2]
[424380859,1780824647000,-572.28584101,0.00019882,2]
[424380857,1780824647000,-469.39252691,0.00019882,2]
[424380861,1780824647000,-433.92857836,0.00019883,2]
[424380867,1780824647000,-1832.65796079,0.000199,2]
[424380863,1780824647000,-460.84651111,0.00019883,2]
[424380871,1780824647000,-532.06704953,0.000199,2]
[424380869,1780824647000,-198.63603079,0.000199,2]
[424380873,1780824647000,-795.0,0.000199,2]
[424380875,1780824647000,-151.54,0.00019903,2]
[424380877,1780824647000,-739.09309547,0.00019998,2]
[424380878,1780824647000,-753535.4343429,0.0002,2]
[424380880,1780824647000,-1937.20465867,0.0002,2]
[424380882,1780824647000,-11447.8549836,0.0002,5]
[424380884,1780824647000,-404959.88300981,0.0002,2]
[424380780,1780824647000,-742.96,0.00019726,2]
[424380841,1780824647000,-467.30933533,0.00019868,2]
[424380835,1780824647000,-294.70984366,0.00019868,2]
[424380865,1780824647000,-263.86164967,0.00019883,2]
[424380832,1780824647000,-274.17805234,0.00019868,2]
[424380834,1780824647000,-183.14734336,0.00019868,2]
[424380791,1780824647000,-500.0,0.00019726,2]
[424380793,1780824647000,-500.0,0.00019726,2]
[424380784,1780824647000,-633.68,0.00019726,2]
[424380795,1780824647000,-3852.59,0.00019726,2]
[424380787,1780824647000,-2910.01,0.00019726,2]
[424380798,1780824647000,-3246.08570863,0.00019744,2]
[424380797,1780824647000,-758.9,0.00019726,2]
[424380801,1780824647000,-1000.0,0.00019778,5]
[424380803,1780824647000,-5250.36334029,0.000198,2]
[424380789,1780824647000,-500.0,0.00019726,2]
[424380805,1780824647000,-267.4151323,0.00019848,2]
[424380811,1780824647000,-372.15454364,0.00019848,2]
[424380809,1780824647000,-396.39195142,0.00019848,2]
[424380815,1780824647000,-198.51174493,0.00019862,2]
[424380817,1780824647000,-151.0,0.00019862,2]
[424380819,1780824647000,-363.38117118,0.00019863,2]
[424380821,1780824647000,-251.93128523,0.00019863,2]
[424380813,1780824647000,-433.03395342,0.00019848,2]
[424380825,1780824647000,-161.3843,0.00019863,2]
[424380823,1780824647000,-481.36397658,0.00019863,2]
[424380827,1780824647000,-333.1348242,0.00019865,2]
[424380830,1780824647000,-479.68123038,0.00019866,2]
[424380807,1780824647000,-626.0269069,0.00019848,2]
[424380940,1780824648000,-5677.84,0.00019178,2]
[424380946,1780824648000,-4183.58143207,0.00019726,2]
[424380942,1780824648000,-5677.84,0.00019452,2]
[424380944,1780824648000,-500.0,0.00019726,2]